bitfinex/quotes_ETHUSD_20230118
["timestamp","ask_amount","ask_price","bid_price","bid_amount"]
[1674029639800,2.74944146,1579.2,1579.0,1.44161131]
[1674029641022,2.74944146,1579.2,1579.0,0.00861131]
[1674029641544,2.74944146,1579.2,1578.9,7.97432684]
[1674029641954,15.41419146,1579.2,1578.9,1.64104684]
[1674029642164,15.48019146,1579.2,1578.8,6.39611684]
[1674029642438,24.92924553,1579.2,1578.8,0.06254684]
[1674029642639,24.92924553,1579.2,1578.8,1.0]
[1674029642855,5.93206553,1579.2,1578.8,1.0]
[1674029643008,12.85770208,1579.2,1578.7,7.92141409]
[1674029643220,25.52245208,1579.2,1578.7,8.98396093]
[1674029643854,24.92924553,1579.2,1578.7,8.98396093]
[1674029645533,12.26438553,1579.2,1578.7,15.31828093]
[1674029645852,5.93206553,1579.2,1578.8,1.434]
[1674029646141,0.066,1579.2,1579.0,1.438]
[1674029646287,0.066,1579.3,1579.1,1.438]
[1674029646491,6.4421793,1579.4,1579.1,1.5818]
[1674029646703,0.1103193,1579.4,1579.1,1.5818]
[1674029646934,0.0443193,1579.4,1579.1,7.91447]
[1674029647138,0.0443193,1579.4,1579.1,7.97701684]
[1674029648525,0.0443193,1579.4,1579.1,12.87173684]
[1674029648679,0.0443193,1579.4,1579.2,2.28717368]
[1674029649095,0.0443193,1579.4,1579.2,8.61947368]
[1674029649309,0.0443193,1579.4,1579.2,7.68202052]
[1674029650313,0.0443193,1579.4,1579.2,9.11602052]
[1674029650530,0.0443193,1579.4,1579.2,21.78066052]
[1674029650679,0.0443193,1579.4,1579.3,2.17806605]
[1674029650888,0.0443193,1579.4,1579.3,8.50997605]
[1674029651156,0.0443193,1579.4,1579.3,16.34243289]
[1674029651683,0.0443193,1579.4,1579.3,22.67434289]
[1674029652467,0.0443193,1579.4,1579.3,16.34243289]
[1674029652728,0.0443193,1579.4,1579.3,14.90443289]
[1674029652893,0.0443193,1579.4,1579.3,16.33843289]
[1674029653531,0.0443193,1579.4,1579.3,22.67034289]
[1674029653936,0.0443193,1579.4,1579.3,24.10734289]
[1674029655323,0.0443193,1579.4,1579.3,33.72396696]
[1674029655541,0.0443193,1579.4,1579.3,34.26468606]
[1674029656032,0.0443193,1579.4,1579.3,30.76468606]
[1674029657285,0.0443193,1579.4,1579.3,32.73634024]
[1674029657400,0.0003193,1579.4,1579.3,32.07491587]
[1674029658153,0.0003193,1579.4,1579.3,36.46599621]
[1674029658690,0.0003193,1579.4,1579.3,46.66719621]
[1674029658939,0.0003193,1579.4,1579.3,46.00577184]
[1674029659140,0.0003193,1579.4,1579.3,42.50611587]
[1674029659299,0.0003193,1579.4,1579.3,42.5278426]
[1674029659513,0.0003193,1579.4,1579.3,46.02715532]
[1674029659764,0.0003193,1579.4,1579.3,46.68778204]
[1674029659985,0.0003193,1579.4,1579.3,46.02715532]
[1674029660135,0.0003193,1579.4,1579.3,46.68778055]
[1674029661913,0.0125273,1579.6,1579.4,0.002]
[1674029662264,0.0125273,1579.6,1579.5,33.28378317]
[1674029662444,0.0125273,1579.6,1579.5,36.34633001]
[1674029662668,0.0125273,1579.6,1579.5,34.36761091]
[1674029663349,0.0125273,1579.6,1579.5,32.93061091]
[1674029674281,0.0125273,1579.6,1579.5,34.36861091]
[1674029674522,0.0125273,1579.6,1579.5,40.48640474]
[1674029674931,0.0125273,1579.6,1579.5,40.48479885]
[1674029675142,0.0125273,1579.6,1579.5,40.48640474]
[1674029675974,7.3e-06,1579.6,1579.5,43.98640474]
[1674029676306,0.65493473,1579.9,1579.6,1.02415347]
[1674029676485,0.65493473,1579.9,1579.8,1.432]
[1674029676689,0.56633473,1579.9,1579.8,23.53835407]
[1674029676897,0.56633473,1579.9,1579.8,27.60090091]
[1674029677624,0.56633473,1579.9,1579.8,26.60090091]
[1674029679219,0.56633473,1579.9,1579.8,25.16890091]
[1674029679428,0.56633473,1579.9,1579.8,29.49513354]
[1674029679786,0.52963473,1579.9,1579.8,29.49513354]
[1674029683024,0.52963473,1579.9,1579.8,26.37850947]
[1674029683259,0.52963473,1579.9,1579.8,19.05227684]
[1674029683475,0.52963473,1579.9,1579.8,12.72236684]
[1674029684000,0.52963473,1579.9,1579.8,19.05227684]
[1674029685522,0.52963473,1579.9,1579.8,19.05067095]
[1674029686095,0.52963473,1579.9,1579.8,19.05227684]
[1674029688930,0.52963473,1579.9,1579.8,22.61280552]
[1674029690787,0.52963473,1579.9,1579.8,32.22702549]
[1674029691015,0.00086592,1580.0,1579.8,38.18729116]
[1674029691241,0.00086592,1580.0,1579.9,8.09878617]
[1674029691431,0.00086592,1580.0,1579.9,27.92511413]
[1674029691640,0.00086592,1580.0,1579.9,32.02167156]
[1674029692071,0.00086592,1580.0,1579.9,32.68442044]
[1674029692237,0.00086592,1580.0,1579.9,32.02167156]
[1674029692752,0.00086592,1580.0,1579.9,24.46704749]
[1674029692869,0.00086592,1580.0,1579.9,0.06254684]
[1674029693082,0.00086592,1580.0,1579.7,16.61533684]
[1674029693550,0.00086592,1580.0,1579.7,17.44833331]
[1674029693768,0.00086592,1580.0,1579.7,16.61533684]
[1674029694084,0.00086592,1580.0,1579.8,1.0]
[1674029695657,0.00086592,1580.0,1579.7,27.07979088]
[1674029695975,0.00086592,1580.0,1579.7,20.74966088]
[1674029696192,0.00086592,1580.0,1579.7,16.61533684]
[1674029699317,0.00086592,1580.0,1579.8,1.0]
[1674029699526,0.00086592,1580.0,1579.7,16.61533684]
[1674029700875,0.00086592,1580.0,1579.8,1.0]
[1674029701093,0.00086592,1580.0,1579.7,16.61533684]
[1674029701390,0.00086592,1580.0,1579.7,18.97624251]
[1674029705218,20.18203139,1580.0,1579.7,0.06254684]
[1674029705438,14.75004557,1579.9,1579.5,0.06254684]
[1674029705602,20.4844,1579.9,1579.4,16.39173684]
[1674029705817,23.99218702,1579.9,1579.4,20.97122302]
[1674029706060,23.99218702,1579.9,1579.4,10.89406735]
[1674029706270,23.99218702,1579.9,1579.4,10.06044684]
[1674029706674,23.99218702,1579.9,1579.4,10.89406735]
[1674029707513,23.99218702,1579.9,1579.4,16.39192684]
[1674029707761,20.4844,1579.9,1579.4,17.22368188]
[1674029708048,20.4844,1579.9,1579.5,1.0]
[1674029708341,21.14593557,1579.9,1579.5,1.0]
[1674029708746,21.14593557,1579.9,1579.4,16.39192684]
[1674029708916,21.14593557,1579.9,1579.4,6.39402684]
[1674029709130,12.66073,1579.7,1579.4,0.06254684]
[1674029709343,12.72673,1579.7,1579.3,14.13754387]
[1674029711263,12.72673,1579.7,1579.3,7.80599387]
[1674029711477,20.49512,1579.7,1579.3,7.80599387]
[1674029711702,23.74971491,1579.7,1579.3,7.80599387]
[1674029712450,20.49512,1579.7,1579.3,7.80599387]
[1674029712661,19.05712,1579.7,1579.4,1.0]
[1674029713183,0.066,1579.7,1579.4,7.33151]
[1674029713396,14.23509004,1579.8,1579.4,7.39405684]
[1674029713548,14.23509004,1579.8,1579.4,9.62424235]
[1674029713754,14.23509004,1579.8,1579.4,15.95575235]
[1674029714571,20.56524004,1579.8,1579.4,9.62424235]
[1674029714703,20.56524004,1579.8,1579.4,7.39405684]
[1674029715169,26.89316668,1579.8,1579.4,0.06254684]
[1674029715449,26.89316668,1579.8,1579.3,14.13769387]
[1674029715616,28.33116668,1579.8,1579.3,14.13769387]
[1674029716357,28.33116668,1579.8,1579.3,7.80599387]
[1674029716739,31.86339891,1579.8,1579.3,7.80599387]
[1674029716948,34.98002298,1579.8,1579.3,0.06559387]
[1674029717157,1.438,1579.7,1579.3,0.00304703]
[1674029717380,6.33079,1579.6,1579.3,0.00304703]
[1674029717572,6.39679,1579.6,1579.3,3.50242442]
[1674029720088,6.39679,1579.6,1579.3,3.50034688]
[1674029720560,6.39679,1579.6,1579.3,2.50034688]
[1674029720711,6.39679,1579.6,1579.3,0.00096949]
[1674029721780,6.30689,1579.6,1579.3,0.00096949]
[1674029723027,1.438,1579.5,1579.2,7.84854684]
[1674029723242,7.75951,1579.4,1579.2,0.06254684]
[1674029723502,1.494,1579.4,1579.1,1.32284873]
[1674029723722,1.428,1579.4,1579.1,1.32284873]
[1674029724346,7.75957,1579.4,1579.1,1.32284873]
[1674029724561,7.82557,1579.4,1579.1,1.32284873]
[1674029725466,1.427,1579.3,1579.1,1.32284873]
[1674029726652,1.3607,1579.3,1579.1,1.32284873]
[1674029729227,1.3192,1579.3,1579.1,1.32284873]
[1674029731994,1.2886,1579.3,1579.1,1.32284873]
[1674029732251,7.62057,1579.3,1579.1,1.32284873]
[1674029732474,7.68657,1579.3,1579.1,1.32284873]
[1674029732827,6.39797,1579.3,1579.1,1.32284873]
[1674029733080,6.39797,1579.3,1579.2,0.49209188]
[1674029738380,0.066,1579.3,1579.2,0.49209188]
[1674029738530,1.504,1579.4,1579.2,0.67358594]
[1674029738741,6.33560757,1579.5,1579.2,0.67358594]
[1674029739074,6.40160757,1579.5,1579.2,0.67358594]
[1674029740368,6.40160757,1579.5,1579.2,0.49209188]
[1674029740685,19.06400757,1579.5,1579.2,0.49209188]
[1674029741056,1.426,1579.4,1579.2,0.49209188]
[1674029741296,6.33191,1579.3,1579.2,0.49209188]
[1674029741522,6.39791,1579.3,1579.2,0.49209188]
[1674029744168,0.066,1579.3,1579.2,0.49209188]
[1674029744318,14.17076757,1579.5,1579.2,1.40684994]
[1674029744531,14.17076757,1579.5,1579.2,0.49209188]
[1674029745933,20.50210757,1579.5,1579.2,0.49209188]
[1674029752515,14.16645,1579.5,1579.2,0.49209188]
[1674029752726,7.83511,1579.5,1579.2,1.49209188]
[1674029753047,7.83511,1579.5,1579.2,2.65804899]
[1674029753259,6.39711,1579.5,1579.2,2.65804899]
[1674029754410,6.39711,1579.5,1579.2,1.65804899]
[1674029754954,12.7284,1579.5,1579.2,1.65804899]
[1674029755360,12.7284,1579.5,1579.2,0.49209188]
[1674029758659,12.7284,1579.5,1579.2,1.49209188]
[1674029758876,12.7284,1579.5,1579.2,0.49209188]
[1674029758877,6.39711,1579.5,1579.2,0.49209188]
[1674029759662,0.066,1579.5,1579.2,0.49209188]
[1674029759981,28.54199869,1579.6,1579.2,6.82437188]
[1674029760218,28.54199869,1579.6,1579.2,9.10925082]
[1674029760517,29.52860174,1579.6,1579.2,9.10925082]
[1674029760868,29.52860174,1579.6,1579.2,2.77697082]
[1674029761080,29.52860174,1579.6,1579.2,0.49209188]
[1674029761671,1.19332642,1579.5,1579.2,0.49209188]
[1674029761883,6.9917842,1579.5,1579.2,0.49209188]
[1674029762083,7.0577842,1579.5,1579.2,0.49209188]
[1674029762620,7.06210177,1579.5,1579.2,0.49209188]
[1674029765601,13.39341177,1579.5,1579.2,0.49209188]
[1674029766601,17.60751482,1579.5,1579.2,0.49209188]
[1674029766845,24.74809931,1579.5,1579.2,0.49209188]
[1674029768211,1.19316733,1579.4,1579.2,0.49209188]
[1674029768418,6.33191,1579.3,1579.2,0.49209188]
[1674029768630,31.54902749,1579.3,1579.2,0.49001637]
[1674029768901,34.81941557,1579.3,1579.2,0.49001637]
[1674029769219,32.53243963,1579.3,1579.2,0.49001637]
[1674029769539,31.53243963,1579.3,1579.2,0.49001637]
[1674029770939,31.53243963,1579.3,1579.0,0.60017395]
[1674029771145,7.75972,1579.1,1579.0,0.60017395]
[1674029771371,22.07494208,1579.1,1579.0,0.60017395]
[1674029772213,22.07925965,1579.1,1579.0,0.60017395]
[1674029772571,20.72547757,1579.1,1579.0,0.60017395]
[1674029772938,19.29416,1579.1,1579.0,0.60017395]
[1674029773165,6.62872,1579.1,1579.0,0.60017395]
[1674029773830,0.066,1579.1,1579.0,0.60017395]
[1674029774018,14.63989,1579.2,1579.0,0.60017395]
[1674029774657,0.066,1579.2,1579.0,0.67630596]
[1674029774845,6.39779,1579.4,1579.0,7.00939596]
[1674029775059,6.39779,1579.4,1579.0,7.0719428]
[1674029776163,19.06101,1579.4,1579.0,0.7388528]
[1674029776407,24.1470719,1579.4,1579.0,0.60017395]
[1674029776940,24.1470719,1579.4,1579.1,1.0]
[1674029776941,20.49901,1579.4,1579.1,1.0]
[1674029778157,20.49901,1579.4,1579.0,0.60017395]
[1674029778368,20.49901,1579.4,1579.0,1.60017395]
[1674029778911,20.49901,1579.4,1579.0,0.60017395]
[1674029781109,21.16051838,1579.4,1579.0,0.60017395]
[1674029781288,0.23,1579.3,1579.0,0.60017395]
[1674029781503,12.89425,1579.3,1579.0,0.60017395]
[1674029781756,12.96025,1579.3,1579.0,0.60017395]
[1674029784359,19.29251,1579.3,1579.0,0.60017395]
[1674029785915,0.296,1579.3,1579.0,0.60017395]
[1674029786122,12.66326,1579.4,1579.0,10.10048864]
[1674029786123,6.39753,1579.4,1579.0,10.10048864]
[1674029786338,6.39753,1579.4,1579.0,10.16303548]
[1674029787385,0.066,1579.4,1579.1,1.0]
[1674029787594,8.49644838,1579.6,1579.2,6.33232]
[1674029787844,0.066,1579.6,1579.3,13.296722]
[1674029788032,16.03713557,1579.7,1579.3,13.35926884]
[1674029790566,16.03713557,1579.7,1579.3,7.02738884]
[1674029791180,16.03713557,1579.7,1579.3,13.35929884]
[1674029792919,15.10232838,1579.7,1579.3,13.35929884]
[1674029793155,8.77170838,1579.7,1579.4,7.66743988]
[1674029793368,8.77170838,1579.7,1579.4,7.72998672]
[1674029793723,0.72750838,1579.7,1579.4,7.72998672]
[1674029793959,3.66150838,1579.7,1579.4,7.72998672]
[1674029794518,3.0,1579.7,1579.4,7.72998672]
[1674029794855,3.66150838,1579.7,1579.4,12.72556684]
[1674029795024,3.0,1579.7,1579.4,12.72556684]
[1674029795234,4.72408853,1579.8,1579.4,12.72556684]
[1674029795557,4.65808853,1579.8,1579.4,12.72556684]
[1674029795937,1.36204172,1579.7,1579.4,12.72556684]
[1674029796164,4.36204172,1579.7,1579.4,0.06254684]
[1674029796517,4.36204172,1579.7,1579.3,0.06254684]
[1674029796518,1.438,1579.5,1579.3,0.06254684]
[1674029796700,1.438,1579.5,1579.2,18.46604684]
[1674029796879,7.76915,1579.5,1579.2,18.46604684]
[1674029797084,7.83515,1579.5,1579.2,18.46604684]
[1674029797326,7.83515,1579.5,1579.2,10.66694684]
[1674029797540,9.95100484,1579.5,1579.2,10.66694684]
[1674029799652,1.427,1579.4,1579.2,10.66694684]
[1674029799809,7.75867,1579.4,1579.2,10.66694684]
[1674029800021,7.82467,1579.4,1579.2,10.66694684]
[1674029800227,14.15634,1579.4,1579.2,10.66694684]
[1674029800489,14.15634,1579.4,1579.2,0.06254684]
[1674029800687,14.15634,1579.4,1579.1,8.03394684]
[1674029801072,14.15634,1579.4,1579.1,0.06254684]
[1674029801284,16.57676299,1579.4,1579.0,16.82806079]
[1674029802129,1.43131757,1579.3,1579.0,10.49512079]
[1674029802400,6.33272,1579.1,1579.0,0.65957338]
[1674029802564,6.39872,1579.1,1579.0,0.59702654]
[1674029803454,7.815337,1579.1,1579.0,0.59702654]
[1674029805539,14.148057,1579.1,1579.0,0.59702654]
[1674029806330,7.815337,1579.1,1579.0,0.59702654]
[1674029806535,6.39872,1579.1,1579.0,0.59702654]
[1674029806784,0.066,1579.1,1579.0,0.59702654]
[1674029807129,12.73105,1579.2,1579.0,0.59702654]
[1674029807850,6.39845,1579.2,1579.0,0.59702654]
[1674029811785,0.066,1579.2,1579.0,6.93014654]
[1674029812158,8.1226,1579.3,1579.0,6.99269338]
[1674029812898,0.066,1579.3,1579.1,3.11662407]
[1674029813062,7.05865838,1579.5,1579.1,6.33245]
[1674029813268,0.72750838,1579.5,1579.1,0.06254684]
[1674029813474,1.43384036,1579.4,1579.0,0.59702654]
[1674029813706,6.33199,1579.3,1579.0,0.59702654]
[1674029814021,6.39799,1579.3,1579.0,0.59702654]
[1674029814839,21.14939838,1579.3,1579.0,0.59702654]
[1674029815051,22.08461981,1579.3,1579.0,0.59702654]
[1674029815305,2.20846198,1579.2,1579.0,0.59702654]
[1674029815528,1.438,1579.1,1579.0,0.59702654]
[1674029815839,22.02711926,1579.1,1579.0,0.59702654]
[1674029816056,22.09311926,1579.1,1579.0,0.59702654]
[1674029816629,22.09743683,1579.1,1579.0,0.59702654]
[1674029816841,30.98506175,1579.1,1579.0,0.59702654]
[1674029817045,32.99279917,1579.1,1579.0,0.59702654]
[1674029818022,32.99279917,1579.1,1579.0,0.16293299]
[1674029818195,32.89034017,1579.1,1579.0,0.16293299]
[1674029819085,31.95511874,1579.1,1579.0,0.16293299]
[1674029819671,32.90297355,1579.1,1579.0,0.16293299]
[1674029820150,31.95511874,1579.1,1579.0,0.16293299]
[1674029821243,30.59415948,1579.1,1579.0,0.16293299]
[1674029823665,31.25566786,1579.1,1579.0,0.16293299]
[1674029823981,30.59415948,1579.1,1579.0,0.16293299]
[1674029824339,31.96745931,1579.1,1579.0,0.16293299]
[1674029824539,30.59415948,1579.1,1579.0,0.16293299]
[1674029824760,34.33562883,1579.1,1579.0,0.16293299]
[1674029824923,33.39247468,1579.1,1579.0,0.16293299]
[1674029825563,32.01915948,1579.1,1579.0,0.16293299]
[1674029826289,30.68361848,1579.1,1579.0,0.16293299]
[1674029826741,32.12161848,1579.1,1579.0,0.16293299]
[1674029829131,33.49434727,1579.1,1579.0,0.16293299]
[1674029829357,32.12161848,1579.1,1579.0,0.16293299]
[1674029829688,33.49426653,1579.1,1579.0,0.16293299]
[1674029829847,32.78312686,1579.1,1579.0,0.16293299]
[1674029830056,32.12161848,1579.1,1579.0,0.16293299]
[1674029831247,31.89161848,1579.1,1579.0,0.16293299]
[1674029831417,28.04810164,1579.1,1579.0,0.16293299]
[1674029831883,26.62310164,1579.1,1579.0,0.16293299]
[1674029832536,26.85310164,1579.1,1579.0,0.16293299]
[1674029836622,17.16944,1579.1,1579.0,0.16293299]
[1674029836812,15.73144,1579.1,1579.0,0.16293299]
[1674029838018,22.06416,1579.1,1579.0,0.16293299]
[1674029838217,30.17021791,1579.1,1579.0,0.16293299]
[1674029838387,31.60821791,1579.1,1579.0,0.16293299]
[1674029839157,32.98230042,1579.1,1579.0,0.16293299]
[1674029839579,32.98235036,1579.1,1579.0,0.16293299]
[1674029839756,31.54435036,1579.1,1579.0,0.16293299]
[1674029839973,30.83172629,1579.1,1579.0,0.16293299]
[1674029840191,31.54435099,1579.1,1579.0,0.16293299]
[1674029840414,30.17021791,1579.1,1579.0,0.16293299]
[1674029840839,32.98234071,1579.1,1579.0,0.16293299]
[1674029841059,34.2575565,1579.1,1579.0,0.16293299]
[1674029841369,35.582148,1579.1,1579.0,0.16293299]
[1674029841519,1.22431757,1579.0,1578.9,0.13638015]
[1674029841729,27.2955889,1579.0,1578.9,0.13638015]
[1674029841973,42.8609489,1579.0,1578.9,0.13638015]
[1674029842213,47.99769063,1579.0,1578.9,0.13638015]
[1674029842378,44.49769063,1579.0,1578.9,0.13638015]
[1674029842951,45.14792484,1579.0,1578.9,0.13638015]
[1674029843113,48.64792484,1579.0,1578.9,0.13638015]
[1674029843473,47.3262619,1579.0,1578.9,0.13638015]
[1674029843740,43.49698412,1579.0,1578.9,0.13638015]
[1674029844126,49.56566655,1579.0,1578.9,0.13638015]
[1674029844294,49.89494433,1579.0,1578.9,0.13638015]
[1674029844717,51.21595535,1579.0,1578.9,0.13638015]
[1674029845492,49.56572114,1579.0,1578.9,0.13638015]
[1674029846164,49.56572114,1579.0,1578.7,0.19451279]
[1674029846374,18.73892582,1578.8,1578.5,0.19451279]
[1674029846653,21.87116,1578.6,1578.5,0.19451279]
[1674029846829,25.05378407,1578.6,1578.5,0.19451279]
[1674029847168,25.28378407,1578.6,1578.5,0.19451279]
[1674029847504,23.85478407,1578.6,1578.5,0.19451279]
[1674029847679,26.46669238,1578.6,1578.5,0.19451279]
[1674029847894,26.42689238,1578.6,1578.5,0.19451279]
[1674029849212,22.41678407,1578.6,1578.5,0.19451279]
[1674029850168,23.85478407,1578.6,1578.5,0.19451279]
[1674029851558,25.29278407,1578.6,1578.5,0.19451279]
[1674029853217,22.41678407,1578.6,1578.5,0.19451279]
[1674029857603,19.30016,1578.6,1578.5,0.19451279]
[1674029857802,12.73544,1578.6,1578.5,0.19451279]
[1674029860001,22.18678407,1578.6,1578.5,0.19451279]
[1674029860211,25.25726207,1578.6,1578.5,0.19451279]
[1674029862758,22.140638,1578.6,1578.5,0.19451279]
[1674029862911,19.30016,1578.6,1578.5,0.19451279]
[1674029863117,12.73544,1578.6,1578.5,0.19451279]
[1674029864692,21.73544,1578.6,1578.5,0.19451279]
[1674029865424,28.07016,1578.6,1578.5,0.19451279]
[1674029866008,15.40072,1578.6,1578.5,0.19451279]
[1674029866644,21.73544,1578.6,1578.5,0.19451279]
[1674029868298,31.18678407,1578.6,1578.5,0.19451279]
[1674029868517,35.46892648,1578.6,1578.5,0.19451279]
[1674029869065,28.30016,1578.6,1578.5,0.19451279]
[1674029869218,21.96544,1578.6,1578.5,0.19451279]
[1674029870699,15.40072,1578.6,1578.5,0.19451279]
[1674029870929,9.066,1578.6,1578.5,2.70251279]
[1674029875093,9.066,1578.6,1578.5,1.26451279]
[1674029876393,9.066,1578.6,1578.5,0.19451279]
[1674029876605,15.40072,1578.6,1578.5,0.19451279]
[1674029876776,21.73544,1578.6,1578.5,0.19451279]
[1674029878199,28.07016,1578.6,1578.5,0.19451279]
[1674029882053,21.73544,1578.6,1578.5,0.19451279]
[1674029884706,28.07016,1578.6,1578.5,0.19451279]
[1674029886473,21.73544,1578.6,1578.5,0.19451279]
[1674029888652,15.40072,1578.6,1578.5,0.19451279]
[1674029889757,34.4129295,1578.6,1578.5,0.19197743]
[1674029889918,36.44559673,1578.6,1578.5,0.19197743]
[1674029890121,38.20331702,1578.6,1578.5,0.19197743]
[1674029890860,39.85355123,1578.6,1578.5,0.19197743]
[1674029892123,38.20331702,1578.6,1578.5,0.19197743]
[1674029892335,36.77631702,1578.6,1578.5,0.19197743]
[1674029892543,37.76821947,1578.6,1578.5,0.19197743]
[1674029892963,36.77631702,1578.6,1578.5,0.19197743]
[1674029893463,38.42655123,1578.6,1578.5,0.19197743]
[1674029893752,42.96228194,1578.6,1578.4,0.14695852]
[1674029893967,12.10582453,1578.5,1578.4,0.14695852]
[1674029894134,31.17718453,1578.5,1578.4,0.14695852]
[1674029894334,30.8461283,1578.5,1578.4,0.14695852]
[1674029896716,35.80527362,1578.5,1578.4,0.14695852]
[1674029896933,5.45795303,1578.4,1578.3,0.18049617]
[1674029897099,36.97525865,1578.4,1578.3,0.18049617]
[1674029898309,35.32502444,1578.4,1578.3,0.18049617]
[1674029898456,37.61200038,1578.4,1578.3,0.18049617]
[1674029898674,2.433,1578.3,1578.2,0.07968836]
[1674029898877,1.0,1578.2,1578.1,0.18866537]
[1674029899153,36.13424951,1578.2,1577.9,0.23049835]
[1674029899353,23.21944209,1578.0,1577.9,0.23049835]
[1674029899522,26.88784771,1578.0,1577.9,0.23049835]
[1674029899734,59.17010641,1578.0,1577.7,0.17714147]
[1674029899967,1.428,1577.8,1577.7,0.17714147]
[1674029900157,35.9671223,1577.8,1577.7,0.17714147]
[1674029900384,35.9671223,1577.8,1577.2,10.5899374]
[1674029900385,3.793,1577.6,1577.2,0.1312374]
[1674029900599,1.428,1577.3,1577.2,0.01869056]
[1674029900917,9.45656407,1577.3,1577.2,0.01869056]
[1674029901156,9.52256407,1577.3,1577.2,0.01869056]
[1674029901459,7.04268173,1577.3,1577.2,0.01869056]
[1674029901697,0.066,1577.3,1577.2,0.01869056]
[1674029901824,12.74582,1577.4,1577.2,0.01869056]
[1674029902195,15.86244407,1577.4,1577.2,0.01869056]
[1674029902353,3.34662407,1577.3,1577.2,0.01869056]
[1674029902729,16.02650407,1577.3,1577.2,0.01869056]
[1674029902913,16.09250407,1577.3,1577.2,0.01869056]
[1674029903875,17.52150407,1577.3,1577.2,0.01869056]
[1674029904073,28.09288253,1577.3,1577.2,0.01869056]
[1674029904467,34.43282253,1577.3,1577.2,0.01864646]
[1674029904875,55.07982253,1577.3,1577.2,0.01864646]
[1674029905087,1.0,1577.2,1576.7,0.0065871]
[1674029905299,19.02465,1576.9,1576.7,0.0065871]
[1674029905554,3.11662407,1576.8,1576.7,0.0065871]
[1674029905766,15.80052407,1576.8,1576.7,0.0065871]
[1674029905920,15.86652407,1576.8,1576.7,0.0065871]
[1674029906599,17.01434509,1576.8,1576.7,0.0065871]
[1674029907657,17.01434509,1576.8,1576.7,0.00393291]
[1674029908032,16.09652407,1576.8,1576.7,0.00393291]
[1674029908451,0.066,1576.8,1576.7,1.07393291]
[1674029908659,6.40755,1576.9,1576.7,1.07393291]
[1674029908892,0.066,1576.9,1576.7,2.51193291]
[1674029909105,12.68132,1577.2,1576.7,2.51193291]
[1674029909106,19.08805,1577.2,1576.7,2.51193291]
[1674029909326,3.11662407,1577.1,1576.7,0.00393291]
[1674029909569,9.45785407,1577.0,1576.7,0.00393291]
[1674029909780,9.52385407,1577.0,1576.7,0.00393291]
[1674029910306,9.52385407,1577.0,1576.8,4.55462407]
[1674029910307,0.066,1577.0,1576.8,4.55462407]
[1674029910479,0.066,1577.2,1576.9,1.89346241]
[1674029910690,6.33987,1577.4,1577.1,1.438]
[1674029910691,0.066,1577.4,1577.1,1.438]
[1674029910943,12.67861,1577.5,1577.1,1.438]
[1674029910944,12.74461,1577.5,1577.1,1.438]
[1674029911260,6.41741682,1577.5,1577.1,1.438]
[1674029911412,6.41741682,1577.5,1577.1,2.22216668]
[1674029911841,6.41741682,1577.5,1577.2,0.00491221]
[1674029912038,12.75682682,1577.5,1577.2,0.00491221]
[1674029912250,15.87345089,1577.5,1577.2,0.00491221]
[1674029912459,15.87345089,1577.5,1577.0,1.438]
[1674029912725,3.11662407,1577.4,1576.9,0.51800925]
[1674029912938,22.13704407,1577.3,1576.8,18.34744095]
[1674029913165,23.63804407,1577.3,1576.8,18.34904684]
[1674029913461,12.74628,1577.3,1576.9,1.83490468]
[1674029914478,19.08642,1577.3,1576.9,1.83490468]
[1674029915555,12.74628,1577.3,1576.9,1.83490468]
[1674029915774,6.40614,1577.3,1576.9,9.61444468]
[1674029915948,6.40614,1577.3,1576.9,9.67699152]
[1674029916156,6.40614,1577.3,1577.0,0.96769915]
[1674029916823,6.40614,1577.3,1577.0,3.40569915]
[1674029916986,6.40614,1577.3,1577.0,2.40569915]
[1674029919255,0.066,1577.3,1577.0,8.74681915]
[1674029919420,6.4058,1577.4,1577.0,8.80936599]
[1674029919623,6.41801682,1577.4,1577.1,0.8809366]
[1674029921199,0.07821682,1577.4,1577.1,0.8809366]
[1674029921410,0.01421682,1577.4,1577.2,1.438]
[1674029921744,0.01221682,1577.4,1577.2,1.438]
[1674029925009,12.69132682,1577.4,1577.1,0.94348344]
[1674029925281,12.75732682,1577.4,1577.0,10.24724599]
[1674029925491,6.41775682,1577.4,1577.0,15.15029599]
[1674029925759,0.07821682,1577.4,1577.0,22.92944599]
[1674029925911,0.01221682,1577.4,1577.1,2.2929446]
[1674029927070,6.35177682,1577.4,1577.1,2.2929446]
[1674029927324,6.41777682,1577.4,1577.1,2.2929446]
[1674029928544,6.41474615,1577.4,1577.1,2.2929446]
[1674029928753,0.07518615,1577.4,1577.1,2.2929446]
[1674029928958,0.00918615,1577.4,1577.2,0.22929446]
[1674029930058,0.01118615,1577.4,1577.2,0.22929446]
[1674029930246,0.00918615,1577.4,1577.2,0.22929446]
[1674029935417,0.00918615,1577.4,1577.1,9.97904144]
[1674029935626,6.34873615,1577.4,1577.1,3.63849144]
[1674029935836,6.41473615,1577.4,1577.1,2.2929446]
[1674029938204,0.07518615,1577.4,1577.1,8.6336846]
[1674029938416,0.00918615,1577.4,1577.1,8.69623144]
[1674029938783,0.00918615,1577.4,1577.2,0.86962314]
[1674029939760,0.00604249,1577.4,1577.2,0.86962314]
[1674029940167,0.01186101,1577.4,1577.2,0.86962314]
[1674029941979,0.01186101,1577.4,1577.2,8.49296314]
[1674029942190,0.01186101,1577.4,1577.2,8.55550998]
[1674029942454,0.01186101,1577.4,1577.3,0.855551]
[1674029942669,0.01186101,1577.4,1577.2,14.89580998]
[1674029943989,0.01186101,1577.4,1577.2,0.06254684]
[1674029944199,0.01186101,1577.4,1577.1,10.25944684]
[1674029944200,6.35147101,1577.4,1577.1,10.25944684]
[1674029944560,19.09669101,1577.4,1577.1,10.25944684]
[1674029945551,19.09669101,1577.4,1577.1,0.06254684]
[1674029945552,22.21331508,1577.4,1577.1,0.06254684]
[1674029945810,31.40211508,1577.4,1576.8,18.7074]
[1674029945969,7.14021151,1577.3,1576.8,18.76994684]
[1674029946175,19.02156,1577.2,1576.8,18.76994684]
[1674029946449,19.08756,1577.2,1576.8,18.76994684]
[1674029946615,23.48018407,1577.2,1576.8,10.76874684]
[1674029947247,19.02345,1577.0,1576.8,0.06254684]
[1674029947443,19.02345,1577.0,1576.7,0.00393291]
[1674029947444,1.902345,1576.9,1576.7,0.00393291]
[1674029947659,12.6839,1576.8,1576.7,0.00393291]
[1674029947859,12.7499,1576.8,1576.7,0.00393291]
[1674029949964,22.20847407,1576.8,1576.7,0.00393291]
[1674029950611,25.20847407,1576.8,1576.7,0.00393291]
[1674029950805,25.20847407,1576.8,1576.4,1.28676453]
[1674029950806,4.793,1576.7,1576.4,1.28676453]
[1674029951018,6.11662407,1576.6,1576.4,1.28676453]
[1674029951227,22.14610407,1576.5,1576.4,1.23676453]